bitfinex/quotes_ETHUSD_20240924
["timestamp","ask_amount","ask_price","bid_price","bid_amount"]
[1727218977192,0.0388095,2670.3,2670.2,4.61723]
[1727218977406,0.0388095,2670.3,2670.2,3.79503]
[1727218978212,0.0388095,2670.3,2670.2,0.05]
[1727218978414,0.0388095,2670.3,2670.2,3.79503]
[1727218978723,0.0388095,2670.3,2670.2,0.05]
[1727218979541,0.0388095,2670.3,2670.2,3.79503]
[1727218979830,0.0388095,2670.3,2670.2,4.59904]
[1727218982427,0.0388095,2670.3,2670.2,6.99153542]
[1727218983214,0.0388095,2670.3,2670.2,6.18752542]
[1727218990341,0.0388095,2670.3,2670.2,6.68752542]
[1727218992841,0.0388095,2670.3,2670.2,4.29503]
[1727218993014,0.8373095,2670.3,2670.2,0.55]
[1727218993830,0.8373095,2670.3,2670.2,4.29503]
[1727218994450,0.8373095,2670.3,2670.2,4.79503]
[1727218994653,0.0388095,2670.3,2670.2,4.79503]
[1727218994814,0.0388095,2670.3,2670.2,8.19153542]
[1727218995954,7.38,2671.2,2670.2,8.19153542]
[1727218995955,7.256119,2671.2,2671.1,3.74377]
[1727218996160,7.2949285,2671.9,2671.1,3.74377]
[1727218996363,0.8234378,2671.9,2671.8,0.05]
[1727218996511,0.8234378,2671.9,2671.1,3.74377]
[1727218996512,3.2523072,2671.9,2671.3,3.74342]
[1727218996856,3.2523072,2671.9,2671.3,3.7434]
[1727218996857,0.77013052,2671.9,2671.3,3.7434]
[1727218997155,0.77013052,2671.9,2671.5,3.7432]
[1727218997456,0.0388095,2671.9,2671.5,3.7432]
[1727218997661,0.0388095,2671.9,2671.6,3.74296]
[1727218998322,0.0388095,2671.9,2671.7,3.74291]
[1727218999119,0.8373095,2671.9,2671.7,3.74291]
[1727218999665,0.8373095,2671.9,2671.8,3.74279]
[1727218999844,0.0388095,2671.9,2671.8,3.74279]
[1727219000013,0.0388095,2671.9,2671.8,6.13528542]
[1727219001455,0.0388095,2671.9,2671.8,7.94885755]
[1727219001644,0.0388095,2671.9,2671.8,7.87400496]
[1727219008669,0.0388095,2671.9,2671.8,10.87400496]
[1727219008877,0.0388095,2671.9,2671.8,11.42400496]
[1727219011753,0.0388095,2671.9,2671.8,10.87400496]
[1727219015084,0.0388095,2671.9,2671.8,7.87400496]
[1727219016090,0.0388095,2671.9,2671.8,5.48150954]
[1727219016290,0.0388095,2671.9,2671.8,3.74279]
[1727219019770,0.0388095,2671.9,2671.8,3.74279]
[1727219022197,0.0388095,2671.9,2671.8,7.61672877]
[1727219023318,0.0388095,2671.9,2671.8,7.54189]
[1727219025225,0.0388095,2671.9,2671.8,7.61671219]
[1727219025386,0.0388095,2671.9,2671.8,8.91710176]
[1727219027921,0.0388095,2671.9,2671.8,5.91710176]
[1727219028209,0.0388095,2671.9,2671.8,5.11800176]
[1727219029625,0.0388095,2671.9,2671.8,3.74279]
[1727219029982,0.0388095,2671.9,2671.8,3.81763711]
[1727219030902,0.0388095,2671.9,2671.8,3.74279]
[1727219031215,0.0388095,2671.9,2671.8,6.74279]
[1727219031512,0.0388095,2671.9,2671.8,7.54189]
[1727219031808,0.0388095,2671.9,2671.8,8.90961954]
[1727219032020,0.0388095,2671.9,2671.8,5.11051954]
[1727219037114,0.0388095,2671.9,2671.8,3.74279]
[1727219037486,0.0388095,2671.9,2671.8,3.81763296]
[1727219038288,0.0388095,2671.9,2671.8,3.74279]
[1727219039124,0.0388095,2671.9,2671.8,3.81762382]
[1727219039295,0.0388095,2671.9,2671.8,3.74279]
[1727219039633,0.0388095,2671.9,2671.8,4.80782954]
[1727219041197,0.8032095,2671.9,2671.8,4.80782954]
[1727219041531,0.8032095,2671.9,2671.8,3.74279]
[1727219041532,0.0388095,2671.9,2671.8,3.74279]
[1727219044140,1.50375917,2671.9,2671.8,3.74279]
[1727219044344,0.0388095,2671.9,2671.8,3.74279]
[1727219044495,0.72410798,2671.9,2671.8,3.74279]
[1727219044695,0.72410798,2671.9,2671.8,4.24279]
[1727219045137,2.53208212,2671.9,2671.8,4.24279]
[1727219045735,1.75246811,2671.9,2671.8,4.24279]
[1727219046141,2.53208212,2671.9,2671.8,4.24279]
[1727219046437,2.53208212,2671.9,2671.8,0.5]
[1727219046438,3.74389353,2671.9,2671.8,0.5]
[1727219046741,5.90560112,2671.9,2671.8,0.5]
[1727219046898,6.2986944,2671.9,2671.8,0.5]
[1727219047129,6.8486944,2671.9,2671.8,0.5]
[1727219047526,11.02114621,2671.9,2671.8,0.5]
[1727219047730,18.09010244,2671.9,2671.8,0.5]
[1727219047925,15.7348701,2671.9,2671.8,0.5]
[1727219048246,0.7644,2671.8,2671.5,3.7432]
[1727219048454,1.17722254,2671.6,2671.5,3.7432]
[1727219048769,2.8914515,2671.6,2671.5,3.7432]
[1727219049076,3.6558515,2671.6,2671.5,3.7432]
[1727219049426,3.6558515,2671.6,2671.3,3.74336]
[1727219049756,2.86409528,2671.5,2671.3,3.74336]
[1727219050100,1.14986632,2671.5,2671.4,3.74335]
[1727219050223,1.83338326,2671.5,2671.4,3.74335]
[1727219050424,0.68351694,2671.5,2671.4,3.74335]
[1727219050632,1.54868117,2671.6,2671.5,3.74321]
[1727219050840,0.78428117,2671.8,2671.7,3.74293]
[1727219051068,0.8184095,2671.9,2671.8,3.74279]
[1727219052127,2.28586369,2671.9,2671.8,3.74279]
[1727219052361,1.50158252,2671.9,2671.8,3.74279]
[1727219052723,0.8184095,2671.9,2671.8,3.74279]
[1727219052950,1.50153104,2671.9,2671.8,4.24279]
[1727219053158,3.311132,2671.9,2671.8,4.24279]
[1727219054978,3.91693046,2671.9,2671.8,0.5]
[1727219055128,4.30987183,2671.9,2671.8,0.5]
[1727219055335,4.30987183,2671.9,2671.8,4.24279]
[1727219055638,4.30981275,2671.9,2671.8,0.5]
[1727219056939,3.91610031,2671.9,2671.8,1.0]
[1727219057130,4.30981275,2671.9,2671.8,1.0]
[1727219057553,3.13259021,2671.9,2671.8,1.0]
[1727219058170,4.85981275,2671.9,2671.8,1.0]
[1727219058485,7.00810856,2671.9,2671.8,1.0]
[1727219058630,10.75075856,2671.9,2671.8,1.0]
[1727219058832,7.00810856,2671.9,2671.8,1.0]
[1727219059344,4.4991037,2671.9,2671.8,4.74279]
[1727219059641,2.52679175,2671.9,2671.8,4.74279]
[1727219059842,3.31010487,2671.9,2671.8,4.74279]
[1727219060158,3.70071786,2671.9,2671.8,4.74279]
[1727219060965,4.25071786,2671.9,2671.8,1.5]
[1727219061183,13.66912008,2671.9,2671.8,1.5]
[1727219061331,11.71077801,2671.9,2671.8,1.5]
[1727219061527,15.76827516,2671.9,2671.8,1.5]
[1727219061767,13.41826468,2671.9,2671.8,0.49094954]
[1727219061975,0.55,2671.4,2670.9,3.74392]
[1727219062190,0.78328341,2671.2,2670.9,3.74392]
[1727219062535,0.07554552,2671.1,2670.9,3.74392]
[1727219063032,0.78328341,2671.2,2670.9,3.74392]
[1727219063235,1.56288341,2671.3,2670.9,7.48789]
[1727219063536,0.25045251,2671.2,2670.9,7.48789]
[1727219065447,0.25045251,2671.2,2670.7,3.7442]
[1727219065647,0.7796,2671.1,2670.7,3.7442]
[1727219065961,1.33528359,2671.1,2670.7,3.7442]
[1727219066677,1.33528359,2671.1,2670.6,3.74446]
[1727219066831,1.33528359,2671.1,2670.8,3.74418]
[1727219067396,0.7796,2671.1,2670.8,3.74418]
[1727219067835,0.7796,2671.1,2670.8,7.4883]
[1727219068654,0.7796,2671.1,2670.9,3.74404]
[1727219070537,3.01804094,2671.0,2670.5,3.74458]
[1727219070784,0.55,2670.8,2670.7,3.74433]
[1727219071334,0.7796,2670.9,2670.8,3.74419]
[1727219072738,0.78328341,2671.1,2670.8,3.74419]
[1727219073073,1.3296,2671.1,2670.9,3.74392]
[1727219073374,2.46670951,2671.1,2670.9,3.74392]
[1727219073748,1.6834261,2671.1,2670.9,3.74392]
[1727219074681,1.6834261,2671.1,2670.8,7.48838]
[1727219074884,1.6834261,2671.1,2670.8,3.74419]
[1727219075748,1.6834261,2671.1,2670.8,3.74408]
[1727219075952,0.2717162,2671.0,2670.9,3.74403]
[1727219076262,0.2717162,2671.0,2670.8,3.74408]
[1727219076263,0.8217162,2671.0,2670.8,3.74408]
[1727219076468,0.07554552,2670.9,2670.8,3.74408]
[1727219076673,0.8217162,2671.0,2670.8,3.74408]
[1727219076981,0.89726172,2671.0,2670.8,3.74408]
[1727219078686,0.8217162,2671.0,2670.8,3.74408]
[1727219079343,0.23845996,2670.9,2670.8,3.74408]
[1727219080269,0.55,2671.0,2670.8,3.74408]
[1727219081068,0.55,2671.0,2670.7,3.74432]
[1727219081268,0.55,2671.0,2670.9,3.74405]
[1727219081503,0.55,2671.0,2670.7,7.48852]
[1727219082005,0.55,2671.0,2670.7,3.7442]
[1727219082213,1.3412,2670.8,2669.8,3.74554]
[1727219082366,1.3412,2670.8,2670.3,3.74481]
[1727219082573,0.55,2670.6,2670.2,3.74494]
[1727219082883,0.7912,2670.4,2670.2,3.74494]
[1727219083266,1.01120289,2670.4,2670.0,3.74524]
[1727219083468,1.01120289,2670.4,2670.1,3.74513]
[1727219086473,1.01120289,2670.4,2670.0,3.74523]
[1727219086673,1.01120289,2670.4,2670.0,7.49046]
[1727219086912,1.01120289,2670.4,2670.0,3.74523]
[1727219087474,1.01120289,2670.4,2669.8,3.74554]
[1727219087475,0.62554552,2670.3,2669.9,3.74543]
[1727219087694,0.55,2670.3,2669.9,3.74543]
[1727219088571,0.55,2670.3,2670.0,3.74529]
[1727219088988,3.04170317,2670.3,2670.0,3.74529]
[1727219089201,0.55,2670.3,2670.0,3.74529]
[1727219090902,0.23444863,2670.2,2670.0,3.74529]
[1727219095692,0.23444863,2670.2,2669.8,3.74554]
[1727219095908,0.23444863,2670.2,2669.9,3.74541]
[1727219098445,1.7944863,2670.4,2669.8,3.74558]
[1727219098626,0.78328341,2670.5,2670.3,3.74489]
[1727219098830,1.25307281,2670.5,2670.3,3.74488]
[1727219099029,0.4697894,2670.5,2670.3,3.74488]
[1727219099840,0.4697894,2670.5,2670.2,3.74493]
[1727219100046,1.32861833,2670.5,2670.2,3.74493]
[1727219100341,0.934205,2670.4,2670.0,3.74525]
[1727219100545,0.68403847,2670.3,2670.0,3.74523]
[1727219100849,0.68403847,2670.3,2669.8,3.74554]
[1727219100850,1.3697,2670.2,2669.8,3.74548]
[1727219101007,0.20537385,2670.1,2669.8,3.74548]
[1727219101205,0.20537385,2670.1,2669.9,3.74545]
[1727219101547,0.28091937,2670.1,2669.8,3.74548]
[1727219102041,0.20537385,2670.1,2669.8,3.74548]
[1727219102246,0.23583573,2670.0,2669.8,3.74548]
[1727219104464,0.98865726,2670.1,2669.8,3.74548]
[1727219104776,2.49579759,2670.0,2669.9,3.74545]
[1727219105364,2.49579759,2670.0,2669.0,3.74669]
[1727219105365,4.29598,2669.6,2668.9,3.74684]
[1727219105544,0.55,2669.3,2668.9,3.74684]
[1727219105749,1.54471054,2669.2,2668.7,7.5328995]
[1727219105929,2.57274882,2669.1,2668.7,3.7858495]
[1727219106129,0.68535885,2669.0,2668.7,7.5329095]
[1727219106479,0.85935169,2669.1,2668.7,7.5329095]
[1727219106480,0.07554552,2668.9,2668.7,7.5329095]
[1727219106679,0.78380617,2669.0,2668.7,3.7858495]
[1727219106835,1.7318749,2669.0,2668.8,3.74692]
[1727219107036,1.04661542,2669.0,2668.8,3.74692]
[1727219107235,1.04661542,2669.0,2668.7,3.7858495]
[1727219107236,0.8197,2668.9,2668.7,0.0388095]
[1727219107437,2.15350617,2668.9,2668.7,0.0388095]
[1727219107691,1.47664073,2668.8,2668.7,0.0388095]
[1727219108178,0.79163154,2668.8,2668.7,0.0388095]
[1727219111361,5.29818834,2668.8,2668.7,0.0388095]
[1727219111541,4.89418997,2668.8,2668.7,0.0388095]
[1727219111740,2.50169455,2668.8,2668.7,0.0388095]
[1727219111984,3.28436134,2668.8,2668.7,0.0388095]
[1727219112198,1.47564282,2668.8,2668.7,3.7859495]
[1727219112487,0.78266679,2668.9,2668.7,0.0388095]
[1727219112488,0.55,2668.9,2668.7,0.0388095]
[1727219113860,0.55,2668.9,2668.7,3.7858895]
[1727219114681,0.7884376,2668.9,2668.7,0.0388095]
[1727219116662,0.7889,2669.1,2669.0,3.74672]
[1727219116885,0.78266679,2669.4,2669.0,3.74672]
[1727219117048,1.57156679,2669.5,2669.1,3.7465]
[1727219117376,0.68315087,2669.4,2669.1,3.7465]
[1727219117586,2.22048495,2669.5,2669.1,3.7465]
[1727219118085,0.55,2669.3,2669.1,3.7465]
[1727219118316,0.55,2669.4,2669.1,3.7465]
[1727219118450,0.55,2669.2,2669.0,3.74672]
[1727219118652,0.07554552,2669.1,2669.0,3.74672]
[1727219118884,1.3389,2669.0,2668.8,3.74695]
[1727219119194,1.3389,2669.0,2668.7,0.0388095]
[1727219119389,1.3389,2669.0,2668.7,3.7859295]
[1727219119551,1.92570168,2669.0,2668.7,3.7859295]
[1727219120486,1.92570168,2669.0,2668.8,7.49378]
[1727219120783,1.3389,2669.2,2668.8,7.49378]
[1727219121000,1.3389,2669.2,2668.8,3.74687]
[1727219121349,5.08535,2669.2,2668.7,3.7858695]
[1727219121558,0.55,2669.0,2668.7,3.7858695]
[1727219122505,0.55,2669.0,2668.8,3.74697]
[1727219122876,0.29041401,2669.3,2669.2,3.74644]
[1727219123109,2.35651235,2669.6,2668.9,0.8264]
[1727219123110,1.57156679,2669.6,2669.3,3.7463]
[1727219123317,1.33583713,2669.5,2669.4,3.74616]
[1727219123611,0.78266679,2669.7,2669.5,3.74601]
[1727219123913,1.17570926,2669.9,2669.8,3.74559]
[1727219123914,0.78266679,2669.9,2669.8,3.74559]
[1727219124082,1.56761235,2670.3,2669.7,3.74573]
[1727219124083,0.78266679,2670.3,2670.1,3.74504]
[1727219124282,0.78266679,2670.3,2670.0,3.74531]
[1727219124283,0.43103576,2670.3,2670.0,3.74531]
[1727219124502,1.57156679,2670.4,2670.0,3.74523]
[1727219124701,1.71098216,2670.3,2670.0,3.74523]
[1727219124886,0.78266679,2670.3,2670.0,3.74523]
[1727219125083,1.80925899,2670.3,2670.0,3.74523]
[1727219125286,0.55,2670.2,2670.0,3.74523]
[1727219125508,0.55,2670.2,2669.8,3.74547]
[1727219125718,1.33266679,2670.2,2669.8,3.74547]
[1727219126213,0.55,2670.0,2669.8,3.74547]
[1727219126409,0.30441759,2669.9,2669.8,3.74547]
[1727219126721,0.55,2669.9,2669.8,3.74547]
[1727219126891,0.55,2670.1,2669.8,3.74547]
[1727219127674,1.33266679,2670.1,2669.8,3.74547]
[1727219128580,1.33266679,2670.1,2669.8,7.49098]
[1727219129009,0.2508376,2670.0,2669.9,3.74541]
[1727219129321,0.8008376,2670.0,2669.9,3.74541]
[1727219129480,0.55,2670.1,2669.9,3.74541]
[1727219129877,3.04539544,2670.1,2669.9,3.74541]
[1727219130112,1.23509146,2670.0,2669.9,3.74541]
[1727219130979,0.55,2670.0,2669.9,3.74541]
[1727219132116,0.55,2670.0,2669.9,3.84110868]
[1727219132611,0.68528858,2670.0,2669.9,3.84110868]
[1727219132820,1.55465504,2670.0,2669.9,3.74541]
[1727219133116,0.86936646,2670.0,2669.9,3.74541]
[1727219133290,1.55468946,2670.0,2669.9,3.74541]
[1727219133706,0.86936646,2670.0,2669.9,3.74541]
[1727219133916,1.55469027,2670.0,2669.9,3.84106529]
[1727219137997,1.55485926,2670.0,2669.9,3.84106529]
[1727219138818,2.58314569,2670.0,2669.9,3.84106529]
[1727219139121,3.36581248,2670.0,2669.9,3.84106529]
[1727219139420,1.2354928,2670.0,2669.9,3.84106529]
[1727219139721,0.78266679,2670.3,2670.1,3.74517]
[1727219139924,0.78266679,2670.4,2670.2,3.74503]
[1727219140091,1.81088742,2670.4,2670.3,3.74489]
[1727219140293,1.36575058,2670.4,2670.3,3.84025978]
[1727219140599,3.07945163,2670.4,2670.3,3.84025978]
[1727219141044,3.62945163,2670.4,2670.3,3.84025978]
[1727219141358,2.84666845,2670.4,2670.3,3.84025978]
[1727219141568,3.62932619,2670.4,2670.3,3.84025978]
[1727219142235,2.8466594,2670.4,2670.3,3.84025978]
[1727219142745,1.81842847,2670.4,2670.3,3.84025978]
[1727219144322,1.81842847,2670.4,2670.3,0.09536978]
[1727219144528,0.7951,2670.3,2670.0,3.74518]
[1727219144728,1.40826619,2670.2,2670.1,0.09530645]
[1727219144930,3.51461325,2670.2,2670.1,0.09530645]
[1727219145139,3.51461325,2670.2,2669.9,3.74536]
[1727219145457,3.04631846,2670.1,2670.0,3.84069325]
[1727219145665,3.04631846,2670.1,2670.0,0.09538325]
[1727219146027,0.55,2670.0,2669.8,7.49103]
[1727219146227,1.05530284,2670.0,2669.9,3.74545]
[1727219146459,1.7407846,2670.0,2669.9,3.74545]
[1727219147338,1.74078473,2670.0,2669.9,3.74545]
[1727219147951,1.74078473,2670.0,2669.9,0.09546006]
[1727219148147,1.83811106,2670.0,2669.9,0.09546006]
[1727219148548,3.55285088,2670.0,2669.9,0.09546006]
[1727219149764,3.55285088,2670.0,2669.9,3.84091006]
[1727219152163,3.47810605,2670.0,2669.9,3.84091006]
[1727219154538,3.47810605,2670.0,2669.9,0.09546006]
[1727219154539,7.31105429,2670.0,2669.9,0.09546006]
[1727219154761,10.25261872,2670.0,2669.9,0.09546006]
[1727219154959,8.60946085,2670.0,2669.5,3.74601]
[1727219155249,1.3332955,2669.6,2669.4,3.74615]
[1727219155574,1.3116821,2669.5,2669.4,3.74615]
[1727219156284,0.55,2669.4,2668.9,3.74683]
[1727219156486,0.55,2669.4,2668.7,3.7858195]
[1727219156487,3.72612626,2669.2,2668.7,3.7858195]
[1727219156686,0.55,2669.0,2668.7,3.7858195]
[1727219156889,0.55,2669.0,2668.7,7.5328695]
[1727219156890,0.07554552,2668.9,2668.7,7.5328695]
[1727219157091,0.07554552,2668.9,2668.7,0.0388095]
[1727219157092,0.55,2668.8,2668.7,0.0388095]
[1727219157245,1.3371,2668.8,2668.7,0.0388095]
[1727219157583,4.23112612,2668.8,2668.7,0.0388095]
[1727219157897,3.48543718,2668.8,2668.7,0.0388095]
[1727219158178,4.66088344,2668.8,2668.7,0.0388095]
[1727219158379,4.73642896,2668.8,2668.7,0.0388095]
[1727219158597,8.48369435,2668.8,2668.7,0.0388095]
[1727219158747,10.17394306,2668.8,2668.7,0.0388095]
[1727219158947,8.60735206,2668.8,2668.7,0.0388095]
[1727219159148,10.56493748,2668.8,2668.7,0.0388095]
[1727219159446,8.60735206,2668.8,2668.7,0.0388095]
[1727219159684,11.60735206,2668.8,2668.7,0.0388095]
[1727219159889,11.60735206,2668.8,2668.0,3.74803]
[1727219160183,0.55,2668.3,2668.2,3.74783]
[1727219160486,0.55,2668.4,2668.3,3.7477]
[1727219160688,0.78377414,2668.6,2668.5,0.7711]
[1727219160871,0.78377414,2668.7,2668.6,3.74728]
[1727219161071,0.78377414,2668.9,2668.7,3.74714]
[1727219161276,1.17566122,2669.1,2668.7,3.74714]
[1727219161277,0.78377414,2669.0,2668.7,3.74714]
[1727219161573,0.78371412,2669.0,2668.9,3.74686]
[1727219161886,1.7181572,2669.0,2668.9,3.74686]
[1727219162087,2.5018758,2669.0,2668.7,3.74714]
[1727219162289,2.06258385,2668.9,2668.7,3.74707]
[1727219162494,1.6779994,2668.9,2668.8,3.747]
[1727219162650,2.36530025,2668.9,2668.8,3.84097442]
[1727219162988,3.39625152,2668.9,2668.8,3.84097442]
[1727219163387,7.14649292,2668.9,2668.8,0.09397442]
[1727219163627,7.14649292,2668.9,2668.0,3.74809]
[1727219163628,0.55,2668.8,2667.9,0.8099095]
[1727219163787,0.55,2668.5,2668.3,7.49519]
[1727219164097,0.55,2668.5,2668.4,0.09148227]
[1727219164302,1.33382331,2668.5,2668.4,0.09148227]
[1727219164517,0.55,2668.5,2668.4,0.09148227]
[1727219164737,2.02099418,2668.5,2668.4,0.09148227]
[1727219164895,1.33382331,2668.5,2668.4,0.09148227]
[1727219165093,1.85964749,2668.5,2668.4,0.09148227]
[1727219165429,3.57757467,2668.5,2668.4,0.09148227]
[1727219165631,3.57757467,2668.5,2667.9,0.8099095]
[1727219165930,0.55,2668.3,2668.1,7.49592]
[1727219166306,0.55,2668.3,2668.2,0.09163608]
[1727219166532,1.23689917,2668.3,2668.2,0.09163608]
[1727219166741,1.60912733,2668.3,2668.2,0.09163608]
[1727219167336,0.92222816,2668.3,2668.2,0.09163608]
[1727219167526,0.55,2668.3,2668.2,0.09163608]
[1727219168389,0.55,2668.4,2668.2,0.09163608]
[1727219168996,1.33382331,2668.4,2668.2,0.09163608]
[1727219169192,0.55,2668.4,2668.2,0.09163608]
[1727219169392,0.62554552,2668.3,2668.2,0.09163608]
[1727219169735,1.19380882,2668.3,2668.0,3.7481]
[1727219169885,0.55,2668.3,2668.2,0.09180923]
[1727219170090,0.55,2668.3,2668.1,0.09188614]
[1727219170290,0.55,2668.3,2668.2,0.09180923]
[1727219170522,0.8222293,2668.3,2668.2,0.09180923]
[1727219170736,0.8222293,2668.3,2668.0,3.7481]
[1727219170899,0.8222293,2668.3,2668.2,0.09180923]
[1727219171114,0.55,2668.2,2668.1,0.09188614]
[1727219171314,0.76593293,2668.2,2668.0,3.7481]
[1727219171619,0.76593293,2668.2,2668.1,3.74798]
[1727219171620,0.55,2668.2,2668.1,3.74798]
[1727219171843,0.55,2668.4,2668.2,3.74784]
[1727219173648,0.55,2668.4,2668.2,7.4956]
[1727219173948,0.62554552,2668.4,2668.2,3.74776]
[1727219174150,0.81906482,2668.4,2668.2,3.74776]
[1727219174439,0.81906482,2668.4,2668.2,7.49552]
[1727219175905,0.07554552,2668.3,2667.9,0.8099095]
[1727219176247,0.07554552,2668.3,2668.0,3.74799]
[1727219176545,0.07554552,2668.3,2668.1,3.74796]
[1727219176746,0.7435193,2668.4,2668.1,3.74796]
[1727219177753,0.7435193,2668.4,2668.2,0.09209426]
[1727219178752,0.7435193,2668.4,2668.2,7.58762426]
[1727219178939,0.55,2668.6,2668.3,3.7477]
[1727219179370,0.55,2668.6,2668.4,0.09194046]
[1727219179883,4.29729,2668.6,2668.4,0.09194046]
[1727219180073,1.51089733,2668.5,2668.4,0.09194046]
[1727219180278,1.51089733,2668.5,2668.1,3.74797]
[1727219180455,0.62554552,2668.4,2668.2,0.09209426]
[1727219182761,0.55,2668.3,2668.2,0.09209426]
[1727219183355,0.55,2668.2,2667.9,4.5580995]
[1727219183558,0.55,2668.2,2668.0,3.7481]
[1727219183787,0.55,2668.2,2667.9,0.8099095]
[1727219183788,0.55,2668.6,2668.3,3.74762]
[1727219183972,0.78382331,2669.0,2668.8,3.74698]
[1727219184175,0.78382331,2669.1,2668.8,3.74698]
[1727219184404,0.7807,2669.2,2668.8,7.4939]
[1727219184547,0.7807,2669.2,2668.8,3.74692]
[1727219184983,3.17319542,2669.2,2668.6,7.49437]
[1727219185187,7.70347873,2669.2,2668.6,3.74717]
[1727219185394,0.68595387,2669.1,2668.6,3.74717]
[1727219185676,7.70347873,2669.2,2668.6,7.49437]
[1727219185875,0.68596869,2669.1,2668.6,7.49437]
[1727219186054,0.68596869,2669.1,2668.7,3.74711]
[1727219186376,7.70347873,2669.2,2668.7,3.74711]
[1727219186577,0.55,2669.1,2668.7,3.74711]
[1727219187151,0.55,2668.9,2668.6,7.49435]
[1727219187657,0.55,2668.9,2668.6,3.74717]
[1727219188395,0.55,2668.9,2668.4,4.53613]
[1727219188557,0.55,2668.9,2668.3,4.2476]
[1727219188558,0.7807,2668.8,2668.3,4.2476]
[1727219188752,0.55,2668.7,2668.3,4.2476]
[1727219188949,0.55,2668.7,2668.4,3.74753]
[1727219189954,0.55,2668.7,2668.4,3.74748]
[1727219190354,1.23713325,2668.7,2668.4,3.74748]
[1727219190558,0.33138654,2668.6,2668.4,3.74748]
[1727219192267,0.33138654,2668.6,2668.3,4.74767]
[1727219192480,0.62554552,2668.5,2668.3,1.0]
[1727219192804,3.85777697,2668.4,2668.3,1.0]
[1727219193489,8.38603697,2668.4,2668.3,1.0]
[1727219193690,8.5857859,2668.4,2668.3,1.0]
[1727219194081,8.58579174,2668.4,2668.3,1.0]
[1727219194280,8.58606292,2668.4,2668.3,1.0]
[1727219194486,3.8569611,2668.4,2668.3,1.0]
[1727219195360,3.85731206,2668.4,2668.3,1.0]
[1727219195715,4.05813166,2668.4,2668.3,1.5]
[1727219195920,7.80569166,2668.4,2668.3,1.5]
[1727219196054,10.80569166,2668.4,2668.3,1.5]
[1727219196259,10.80569166,2668.4,2667.9,0.0388095]
[1727219196260,7.29812,2668.0,2667.9,0.0388095]
[1727219196461,13.6437911,2668.0,2667.9,0.0388095]
[1727219196674,15.28910534,2668.0,2667.9,0.0388095]
[1727219197295,17.64068169,2668.0,2667.9,0.0388095]
[1727219197901,15.28910534,2668.0,2667.9,0.0388095]
[1727219198081,15.80131413,2668.0,2667.9,0.0388095]
[1727219198293,18.15289048,2668.0,2667.9,0.0388095]
[1727219198696,15.80131413,2668.0,2667.9,0.0388095]
[1727219199403,18.15289048,2668.0,2667.9,0.0388095]
[1727219199606,14.08047363,2668.0,2667.9,0.0388095]
[1727219199781,18.14433384,2668.0,2667.9,0.0388095]
[1727219200509,12.00371842,2668.0,2667.9,0.0388095]
[1727219200667,6.59926382,2668.0,2667.9,0.0388095]
[1727219200872,6.08705503,2668.0,2667.9,0.12832253]
[1727219201127,4.37608966,2668.0,2667.9,0.12832253]
[1727219201297,6.08754051,2668.0,2667.9,0.12832253]
[1727219202498,6.63754051,2668.0,2667.9,0.12832253]
[1727219202682,7.89446092,2668.0,2667.9,0.0388095]
[1727219202867,11.64258092,2668.0,2667.9,0.0388095]
[1727219203072,14.03507634,2668.0,2667.9,0.0388095]
[1727219203633,15.74882722,2668.0,2667.9,0.0388095]
[1727219203806,16.51542722,2668.0,2667.9,0.0388095]
[1727219203970,16.51542722,2668.0,2667.9,0.12832253]
[1727219204172,16.51542722,2668.0,2667.9,0.0388095]
[1727219205300,18.86963754,2668.0,2667.9,0.0388095]
[1727219205803,18.87143253,2668.0,2667.9,0.0388095]
[1727219206303,18.87143253,2668.0,2667.1,0.8568095]
[1727219206304,0.55,2667.2,2667.1,0.0388095]
[1727219206509,2.26324421,2667.2,2667.1,0.12924403]
[1727219206818,5.20394778,2667.2,2667.1,0.0388095]
[1727219207129,5.9621264,2667.2,2667.1,0.0388095]
[1727219207336,3.43998546,2667.2,2667.1,3.7881995]
[1727219207628,3.04765154,2667.2,2667.1,4.6061995]
[1727219207793,3.04765154,2667.2,2667.1,4.69663403]
[1727219209226,1.23529768,2667.2,2667.1,3.87863403]
[1727219209737,0.68529768,2667.2,2667.1,3.87863403]
[1727219210029,1.33440733,2667.3,2667.2,3.74925]
[1727219210226,2.49704706,2667.3,2667.2,3.74925]
[1727219210527,0.68505589,2667.3,2667.2,3.83960756]
[1727219210900,0.78440733,2667.4,2667.3,4.5671]
[1727219211102,0.78440733,2667.5,2667.4,3.74896]
[1727219211302,1.81177025,2667.5,2667.4,3.83916364]
[1727219211505,0.68490861,2667.5,2667.4,4.67979]
[1727219211739,0.78440733,2667.7,2667.6,3.74868]
[1727219212091,0.68483378,2667.7,2667.6,3.83872974]
[1727219212294,1.46924111,2667.8,2667.6,3.83872974]
[1727219212528,2.4964977,2667.7,2667.6,3.83872974]
[1727219212730,1.71209037,2667.7,2667.6,4.65672974]
[1727219212908,0.68483378,2667.7,2667.6,4.65672974]
[1727219213098,0.78440733,2667.8,2667.6,0.90804974]
[1727219213299,2.49647603,2667.7,2667.6,0.90804974]
[1727219214236,1.81164225,2667.7,2667.6,0.90804974]
[1727219214904,2.49647603,2667.7,2667.6,0.90804974]
[1727219215106,1.81164225,2667.7,2667.6,0.90804974]
[1727219215432,1.46924111,2667.7,2667.6,4.65672974]
[1727219215607,2.49647603,2667.7,2667.6,4.65672974]
[1727219215804,1.71208166,2667.7,2667.6,4.65672974]
[1727219216023,0.68483378,2667.7,2667.6,4.65672974]
[1727219216224,2.49649518,2667.7,2667.6,4.65672974]
[1727219216447,2.49649518,2667.7,2667.6,0.90804974]
[1727219216741,1.8116614,2667.7,2667.6,0.90804974]
[1727219217036,2.49649518,2667.7,2667.6,0.90804974]
[1727219217328,1.8116614,2667.7,2667.6,0.90804974]
[1727219218324,1.71208785,2667.7,2667.6,0.90804974]
[1727219218643,2.86381882,2667.7,2667.6,0.09004974]
[1727219218994,2.49649518,2667.7,2667.6,0.09004974]
[1727219219199,1.8116614,2667.7,2667.6,0.09004974]
[1727219219438,0.78440733,2667.7,2667.6,0.09004974]
[1727219219642,2.49649518,2667.7,2667.6,3.83872974]
[1727219219952,1.71213305,2667.7,2667.6,3.83872974]
[1727219220121,1.02727983,2667.7,2667.6,3.83872974]
[1727219220316,0.68485322,2667.7,2667.6,3.83872974]